Workbook

Sheet Raw-data used to genrate Table1
A1: Cultivars | B1: Number of Explants | C1: Jik Concentration (%) | D1: Exposure time (min) | E1: After 4 days | H1: After 8 days | K1: After 12 days
E2: Nb. of clean explants | F2: (%) Clean explants/cultivars | G2: (%) Clean explants/treatement | H2: Nb. of clean explants | I2: (%) Clean explants/cultivars | J2: (%) Clean explants/treatement | K2: Nb. of clean explants | L2: (%) Clean explants/cultivarS | M2: (%) Clean explants/treatement
A3: Agblehoundo | B3: 20 | C3: 10 | D3: 5 | E3: 17 | F3: =AVERAGEA(E3*100/B3) -> 85 | G3: =AVERAGEA((F3+F4+F5)/3) -> 80 | H3: 15 | I3: =AVERAGEA(H3*100/B3) -> 75 | J3: =AVERAGEA((I3+I4+I5)/3) -> 66.66666667 | K3: 2 | L3: =AVERAGEA(K3*100/B3) -> 10 | M3: =AVERAGEA((L3+L4+L5)/3) -> 13.33333333
A4: Agric-rouge | B4: 20 | E4: 16 | F4: 80 | H4: 13 | I4: 65 | K4: 3 | L4: 15
A5: Atinwewe | B5: 20 | E5: 15 | F5: 75 | H5: 12 | I5: 60 | K5: 3 | L5: 15
A6: Agblehoundo | B6: 20 | C6: 10 | D6: 10 | E6: 16 | F6: 80 | G6: =AVERAGEA((F6+F7+F8)/3) -> 81.66666667 | H6: 14 | I6: 70 | J6: =AVERAGEA((I6+I7+I8)/3) -> 63.33333333 | K6: 2 | L6: 10 | M6: =AVERAGEA((L6+L7+L8)/3) -> 13.33333333
A7: Agric-rouge | B7: 20 | E7: 14 | F7: 70 | H7: 11 | I7: 55 | K7: 2 | L7: 10
A8: Atinwewe | B8: 20 | E8: 19 | F8: 95 | H8: 13 | I8: 65 | K8: 4 | L8: 20
A9: Agblehoundo | B9: 20 | C9: 10 | D9: 15 | E9: 17 | F9: 85 | G9: =AVERAGEA((F9+F10+F11)/3) -> 78.33333333 | H9: 4 | I9: 20 | J9: =AVERAGEA((I9+I10+I11)/3) -> 21.66666667 | K9: 3 | L9: 15 | M9: =AVERAGEA((L9+L10+L11)/3) -> 13.33333333
A10: Agric-rouge | B10: 20 | E10: 15 | F10: 75 | H10: 5 | I10: 25 | K10: 2 | L10: 10
A11: Atinwewe | B11: 20 | E11: 15 | F11: 75 | H11: 4 | I11: 20 | K11: 3 | L11: 15
A12: Agblehoundo | B12: 20 | C12: 10 | D12: 20 | E12: 19 | F12: 95 | G12: =AVERAGEA((F12+F13+F14)/3) -> 90 | H12: 15 | I12: 75 | J12: =AVERAGEA((I12+I13+I14)/3) -> 78.33333333 | K12: 11 | L12: 55 | M12: =AVERAGEA((L12+L13+L14)/3) -> 55
A13: Agric-rouge | B13: 20 | E13: 19 | F13: 95 | H13: 15 | I13: 75 | K13: 12 | L13: 60
A14: Atinwewe | B14: 20 | E14: 16 | F14: 80 | H14: 17 | I14: 85 | K14: 10 | L14: 50
A15: Agblehoundo | B15: 20 | C15: 15 | D15: 5 | E15: 19 | F15: 95 | G15: =AVERAGEA((F15+F16+F17)/3) -> 91.66666667 | H15: 14 | I15: 70 | J15: =AVERAGEA((I15+I16+I17)/3) -> 56.66666667 | K15: 10 | L15: 50 | M15: =AVERAGEA((L15+L16+L17)/3) -> 43.33333333
A16: Agric-rouge | B16: 20 | E16: 18 | F16: 90 | H16: 10 | I16: 50 | K16: 9 | L16: 45
A17: Atinwewe | B17: 20 | E17: 18 | F17: 90 | H17: 10 | I17: 50 | K17: 7 | L17: 35
A18: Agblehoundo | B18: 20 | C18: 15 | D18: 10 | E18: 19 | F18: 95 | G18: =AVERAGEA((F18+F19+F20)/3) -> 93.33333333 | H18: 13 | I18: 65 | J18: =AVERAGEA((I18+I19+I20)/3) -> 21.66666667 | K18: 7 | L18: 35 | M18: =AVERAGEA((L18+L19+L20)/3) -> 28.33333333
A19: Agric-rouge | B19: 20 | E19: 19 | F19: 95 | H19: 14 | K19: 5 | L19: 25
A20: Atinwewe | B20: 20 | E20: 18 | F20: 90 | H20: 16 | K20: 5 | L20: 25
A21: Agblehoundo | B21: 20 | C21: 15 | D21: 15 | E21: 20 | F21: 100 | G21: =AVERAGEA((F21+F22+F23)/3) -> 100 | H21: 20 | I21: =AVERAGEA(H21*100/B21) -> 100 | J21: =AVERAGEA((I21+I22+I23)/3) -> 100 | K21: 15 | L21: 75 | M21: =AVERAGEA((L21+L22+L23)/3) -> 73.33333333
A22: Agric-rouge | B22: 20 | E22: 20 | F22: 100 | H22: 20 | I22: 100 | K22: 15 | L22: 75
A23: Atinwewe | B23: 20 | E23: 20 | F23: 100 | H23: 20 | I23: 100 | K23: 14 | L23: 70
A24: Agblehoundo | B24: 20 | C24: 15 | D24: 20 | E24: 20 | F24: 100 | G24: =AVERAGEA((F24+F25+F26)/3) -> 100 | H24: 15 | I24: 75 | J24: =AVERAGEA((I24+I25+I26)/3) -> 71.66666667 | K24: 14 | L24: 70 | M24: =AVERAGEA((L24+L25+L26)/3) -> 71.66666667
A25: Agric-rouge | B25: 20 | E25: 20 | F25: 100 | H25: 12 | I25: 60 | K25: 15 | L25: 75
A26: Atinwewe | B26: 20 | E26: 20 | F26: 100 | H26: 16 | I26: 80 | K26: 14 | L26: 70
A27: Agblehoundo | B27: 20 | C27: 20 | D27: 15 | E27: 20 | F27: 100 | G27: =AVERAGEA((F27+F28+F29)/3) -> 100 | H27: 20 | I27: 100 | J27: =AVERAGEA((I27+I28+I29)/3) -> 96.66666667 | K27: 19 | L27: 95 | M27: =AVERAGEA((L27+L28+L29)/3) -> 90
A28: Agric-rouge | B28: 20 | E28: 20 | F28: 100 | H28: 19 | I28: 95 | K28: 16 | L28: 80
A29: Atinwewe | B29: 20 | E29: 20 | F29: 100 | H29: 19 | I29: 95 | K29: 19 | L29: 95
A30: Agblehoundo | B30: 20 | C30: 20 | D30: 20 | E30: 19 | F30: 95 | G30: =AVERAGEA((F30+F31+F32)/3) -> 93.33333333 | H30: 17 | I30: 85 | J30: =AVERAGEA((I30+I31+I32)/3) -> 91.66666667 | K30: 17 | L30: 85 | M30: =AVERAGEA((L30+L31+L32)/3) -> 81.66666667
A31: Agric-rouge | B31: 20 | E31: 20 | F31: 100 | H31: 20 | I31: 100 | K31: 15 | L31: 75
A32: Atinwewe | B32: 20 | E32: 17 | F32: 85 | H32: 18 | I32: 90 | K32: 17 | L32: 85
A33: Agblehoundo | B33: 20 | C33: 25 | D33: 15 | E33: 19 | F33: 95 | G33: =AVERAGEA((F33+F34+F35)/3) -> 95 | H33: 19 | I33: 95 | J33: =AVERAGEA((I33+I34+I35)/3) -> 80 | K33: 16 | L33: 80 | M33: =AVERAGEA((L33+L34+L35)/3) -> 80
A34: Agric-rouge | B34: 20 | E34: 20 | F34: 100 | H34: 15 | I34: 75 | K34: 16 | L34: 80
A35: Atinwewe | B35: 20 | E35: 18 | F35: 90 | H35: 14 | I35: 70 | K35: 16 | L35: 80
A36: Agblehoundo | B36: 20 | C36: 25 | D36: 20 | E36: 20 | F36: 100 | G36: =AVERAGEA((F36+F37+F38)/3) -> 96.66666667 | H36: 20 | I36: 100 | J36: =AVERAGEA((I36+I37+I38)/3) -> 91.66666667 | K36: 17 | L36: 85 | M36: =AVERAGEA((L36+L37+L38)/3) -> 85
A37: Agric-rouge | B37: 20 | E37: 19 | F37: 95 | H37: 17 | I37: 85 | K37: 19 | L37: 95
A38: Atinwewe | B38: 20 | E38: 19 | F38: 95 | H38: 18 | I38: 90 | K38: 15 | L38: 75
